bitfinex/quotes_BTCUSD_20251027
["timestamp","ask_amount","ask_price","bid_price","bid_amount"]
[1761564183793,0.69022036,115250.0,115240.0,0.68032]
[1761564184202,1.17830522,115250.0,115240.0,0.68032]
[1761564184407,1.15226357,115250.0,115240.0,0.68032]
[1761564184988,0.66417871,115250.0,115240.0,0.68032]
[1761564186410,0.17609385,115250.0,115240.0,0.68032]
[1761564186743,0.66417871,115250.0,115240.0,0.68032]
[1761564188899,1.24208258,115250.0,115240.0,0.5274]
[1761564189098,1.24208258,115250.0,115240.0,0.68032]
[1761564189401,0.26591286,115250.0,115240.0,0.68032]
[1761564189546,0.75399772,115250.0,115240.0,0.68032]
[1761564189755,0.72806192,115250.0,115240.0,0.68032]
[1761564189955,0.72606192,115250.0,115240.0,0.68032]
[1761564190263,0.73606192,115250.0,115240.0,0.68032]
[1761564190818,0.73706192,115250.0,115240.0,0.68032]
[1761564191177,0.73606192,115250.0,115240.0,0.68032]
[1761564191585,0.72606192,115250.0,115240.0,0.68032]
[1761564192002,0.73206192,115250.0,115240.0,0.68032]
[1761564192649,0.64224291,115250.0,115240.0,0.68032]
[1761564194812,0.63624291,115250.0,115240.0,0.68032]
[1761564195741,0.63924291,115250.0,115240.0,0.68032]
[1761564203878,0.17709385,115250.0,115240.0,0.68032]
[1761564204091,0.81617391,115250.0,115240.0,0.68032]
[1761564204563,0.81617391,115250.0,115240.0,0.5274]
[1761564204564,1.25408349,115250.0,115240.0,0.5274]
[1761564204765,1.25408349,115250.0,115240.0,0.6802]
[1761564204884,1.28012756,115250.0,115240.0,0.6802]
[1761564205517,0.6410475,115250.0,115240.0,0.6802]
[1761564205855,1.28012756,115250.0,115240.0,0.0902]
[1761564206072,1.28012756,115250.0,115240.0,0.68024]
[1761564206629,1.36050381,115250.0,115240.0,0.68024]
[1761564207865,0.72142375,115250.0,115240.0,0.68024]
[1761564208042,1.36050381,115250.0,115240.0,0.68024]
[1761564208606,1.36050381,115250.0,115240.0,0.52744]
[1761564208812,1.36050381,115250.0,115240.0,0.68024]
[1761564209820,1.58932555,115250.0,115240.0,0.68024]
[1761564210782,1.58932555,115250.0,115240.0,0.59004]
[1761564211216,1.62550783,115250.0,115240.0,0.59004]
[1761564211451,1.64414134,115250.0,115240.0,0.59004]
[1761564211648,1.70414134,115250.0,115240.0,0.59004]
[1761564212193,1.62076509,115250.0,115240.0,0.59004]
[1761564212362,1.62876509,115250.0,115240.0,0.59004]
[1761564212778,1.62976509,115250.0,115240.0,0.59004]
[1761564214536,1.64593645,115250.0,115240.0,0.59004]
[1761564214773,0.17361076,115220.0,115180.0,0.06223735]
[1761564214985,0.60756923,115200.0,115190.0,0.18078975]
[1761564215229,0.60756923,115200.0,115190.0,0.22904]
[1761564215406,0.17361833,115200.0,115190.0,0.22904]
[1761564216052,0.17361833,115200.0,115190.0,0.38240451]
[1761564216265,0.61624619,115210.0,115190.0,0.38240451]
[1761564216493,0.61624619,115210.0,115200.0,0.00726912]
[1761564217314,0.17359604,115210.0,115200.0,0.30574912]
[1761564217523,0.17359604,115210.0,115200.0,0.29848]
[1761564218330,0.17359604,115210.0,115200.0,0.30448]
[1761564218795,0.17359604,115210.0,115200.0,0.30548]
[1761564219003,0.60756166,115220.0,115200.0,0.30548]
[1761564219217,0.60756166,115220.0,115210.0,0.16014535]
[1761564219617,0.17361076,115220.0,115210.0,0.16014535]
[1761564220075,0.60756166,115220.0,115210.0,0.16014535]
[1761564220475,0.17361076,115220.0,115210.0,0.16014535]
[1761564220797,0.60756166,115220.0,115210.0,0.16014535]
[1761564220924,0.17361076,115220.0,115210.0,0.16014535]
[1761564221336,0.17361076,115220.0,115210.0,0.16314535]
[1761564221948,0.6161951,115230.0,115210.0,0.16314535]
[1761564222200,0.6161951,115230.0,115220.0,0.05552]
[1761564222560,0.6161951,115230.0,115220.0,0.06278001]
[1761564223615,0.1822442,115230.0,115220.0,0.06278001]
[1761564224174,0.17356591,115230.0,115220.0,0.06278001]
[1761564224575,0.61639928,115240.0,115220.0,0.06278001]
[1761564224800,0.61639928,115240.0,115230.0,0.15284]
[1761564225006,0.60770816,115240.0,115230.0,0.15284]
[1761564225210,0.60770816,115240.0,115230.0,0.16009625]
[1761564225975,0.60785343,115240.0,115230.0,0.16009625]
[1761564226377,0.17390253,115240.0,115230.0,0.16009625]
[1761564227164,0.60785343,115240.0,115230.0,0.16009625]
[1761564227935,0.17390253,115240.0,115230.0,0.16009625]
[1761564229393,0.60785343,115240.0,115230.0,0.16009625]
[1761564229980,0.60785343,115240.0,115230.0,0.33361625]
[1761564230177,0.60785343,115240.0,115230.0,0.32636]
[1761564231448,0.17390253,115240.0,115230.0,0.32636]
[1761564232020,0.18258007,115240.0,115230.0,0.36104]
[1761564232247,0.18258007,115240.0,115230.0,0.59008]
[1761564232410,0.61653097,115240.0,115200.0,0.77871932]
[1761564232615,0.18258007,115240.0,115230.0,0.22904]
[1761564232877,0.61653097,115240.0,115230.0,0.38184]
[1761564233677,0.18258007,115240.0,115230.0,0.38184]
[1761564234491,0.18258007,115240.0,115210.0,0.08981901]
[1761564234701,0.173566,115230.0,115220.0,0.00726001]
[1761564234904,0.173566,115230.0,115220.0,0.68711902]
[1761564235106,0.173566,115230.0,115220.0,0.67985901]
[1761564235309,0.6075169,115230.0,115220.0,0.20824]
[1761564235520,0.6075169,115230.0,115220.0,0.59004]
[1761564235907,0.173566,115230.0,115220.0,0.59004]
[1761564236685,0.61653097,115240.0,115220.0,0.59004]
[1761564236887,0.61653097,115240.0,115230.0,0.00725782]
[1761564237157,0.18258007,115240.0,115230.0,0.00725782]
[1761564238157,0.61653097,115240.0,115230.0,0.00725782]
[1761564239226,0.17356591,115230.0,115220.0,0.59004]
[1761564240075,0.19960695,115230.0,115220.0,0.59004]
[1761564240402,0.19960695,115230.0,115220.0,0.361]
[1761564240565,0.19960695,115230.0,115220.0,0.59004]
[1761564240908,0.19960695,115230.0,115220.0,0.59304]
[1761564241191,0.63355785,115230.0,115220.0,0.53748]
[1761564241325,0.19960695,115230.0,115220.0,0.593]
[1761564241527,0.63355785,115230.0,115220.0,0.593]
[1761564242040,0.63355785,115230.0,115220.0,0.44028]
[1761564242244,0.72337686,115230.0,115220.0,0.593]
[1761564242672,0.72337686,115230.0,115220.0,0.59]
[1761564243859,0.19960695,115230.0,115220.0,0.59]
[1761564244435,0.17356591,115230.0,115220.0,0.59]
[1761564244785,0.64257264,115240.0,115220.0,0.59]
[1761564244998,0.17356591,115230.0,115220.0,0.59]
[1761564246223,0.17356591,115230.0,115220.0,0.593]
[1761564247014,0.60751681,115230.0,115220.0,0.593]
[1761564247769,0.60751681,115230.0,115220.0,0.003]
[1761564247969,0.62911045,115230.0,115220.0,0.59308]
[1761564248195,0.60751681,115230.0,115220.0,0.59308]
[1761564248350,0.60751681,115230.0,115220.0,0.003]
[1761564248548,0.60751681,115230.0,115220.0,0.59304]
[1761564248793,0.17356591,115230.0,115220.0,0.59304]
[1761564248998,0.60751681,115230.0,115220.0,0.59004]
[1761564249781,0.19961009,115230.0,115220.0,0.59004]
[1761564250281,0.17356591,115230.0,115220.0,0.59004]
[1761564252225,0.20862274,115240.0,115220.0,0.67985901]
[1761564252425,0.18258007,115240.0,115230.0,0.00725782]
[1761564254134,0.00035168,115240.0,115230.0,0.00725782]
[1761564254342,0.17390253,115240.0,115230.0,0.00725782]
[1761564255002,0.17390253,115240.0,115230.0,0.18731683]
[1761564255003,0.00035168,115240.0,115230.0,0.18731683]
[1761564255206,0.00035168,115240.0,115230.0,0.18005901]
[1761564256375,0.00035168,115240.0,115230.0,0.78857582]
[1761564256614,0.00035168,115240.0,115230.0,0.89299545]
[1761564256845,0.00035168,115240.0,115230.0,0.88699545]
[1761564257269,0.00035168,115240.0,115230.0,0.89299545]
[1761564257702,0.00035168,115240.0,115230.0,0.89199545]
[1761564257915,0.00035168,115240.0,115230.0,1.23199545]
[1761564258125,0.00035168,115240.0,115230.0,1.23299545]
[1761564258337,0.00035168,115240.0,115230.0,1.24299543]
[1761564259128,0.00035168,115240.0,115230.0,1.18691092]
[1761564259354,0.00035168,115240.0,115230.0,0.74296004]
[1761564259573,0.00035168,115240.0,115230.0,1.09932691]
[1761564260014,0.00035168,115240.0,115230.0,1.1093269]
[1761564260260,0.00035168,115240.0,115230.0,1.1033269]
[1761564260477,0.00035168,115240.0,115230.0,1.1143269]
[1761564260715,0.00035168,115240.0,115230.0,1.10432691]
[1761564260938,0.00035168,115240.0,115230.0,1.1133269]
[1761564261453,0.00035168,115240.0,115230.0,1.1143269]
[1761564261648,0.00035168,115240.0,115230.0,1.1133269]
[1761564261855,0.00035168,115240.0,115230.0,1.1755096]
[1761564262062,0.00035168,115240.0,115230.0,1.1775096]
[1761564262910,0.00035168,115240.0,115230.0,1.2330296]
[1761564263130,0.00035168,115240.0,115230.0,1.7675096]
[1761564263567,0.00035168,115240.0,115230.0,1.3335587]
[1761564263775,0.00035168,115240.0,115230.0,1.7675096]
[1761564264263,0.00035168,115240.0,115230.0,0.73474987]
[1761564264501,0.00035168,115240.0,115230.0,1.16194989]
[1761564264719,0.00035168,115240.0,115230.0,1.31474989]
[1761564265172,0.00035168,115240.0,115230.0,0.10281901]
[1761564265386,0.60785343,115240.0,115230.0,0.52701901]
[1761564265607,0.60785343,115240.0,115230.0,0.68281901]
[1761564265826,0.66185339,115240.0,115230.0,0.68281901]
[1761564266043,0.66185339,115240.0,115230.0,0.68081901]
[1761564266216,0.66285339,115240.0,115230.0,0.68081901]
[1761564266514,0.66185339,115240.0,115230.0,0.68081901]
[1761564266726,0.66185339,115240.0,115230.0,0.67981901]
[1761564266935,0.66785339,115240.0,115230.0,0.67981901]
[1761564267365,0.66785339,115240.0,115230.0,0.77101901]
[1761564267829,0.66785339,115240.0,115230.0,0.77001901]
[1761564269644,0.66785339,115240.0,115230.0,0.71449901]
[1761564269847,0.66785339,115240.0,115230.0,0.77001901]
[1761564270636,0.49430254,115240.0,115230.0,0.77001901]
[1761564270861,0.17990253,115240.0,115230.0,0.77001901]
[1761564271117,0.66785339,115240.0,115230.0,0.77001901]
[1761564271307,0.66785339,115240.0,115230.0,0.61721901]
[1761564271462,0.66785339,115240.0,115230.0,0.77001901]
[1761564272085,0.75199231,115240.0,115230.0,0.0902]
[1761564272257,0.75199231,115240.0,115230.0,0.68016]
[1761564272457,0.69389549,115240.0,115230.0,0.68016]
[1761564277028,0.20594463,115240.0,115230.0,0.68016]
[1761564277233,0.69389549,115240.0,115230.0,0.68016]
[1761564280101,0.20594463,115240.0,115230.0,0.68016]
[1761564280246,0.69389549,115240.0,115230.0,0.68016]
[1761564285137,0.20594463,115240.0,115230.0,0.68016]
[1761564285337,0.69389549,115240.0,115230.0,0.68016]
[1761564285897,0.73399217,115240.0,115230.0,0.68016]
[1761564286891,0.69389549,115240.0,115230.0,0.68016]
[1761564287899,1.52184635,115240.0,115230.0,0.68016]
[1761564288106,1.61166536,115240.0,115230.0,0.5274]
[1761564288329,1.61166536,115240.0,115230.0,0.68016]
[1761564289286,1.60566536,115240.0,115230.0,0.68016]
[1761564289532,1.70648437,115240.0,115230.0,0.68016]
[1761564289736,1.70648437,115240.0,115230.0,0.0902]
[1761564289942,1.70648437,115240.0,115230.0,0.6802]
[1761564291427,1.71454528,115240.0,115230.0,0.6802]
[1761564294576,1.71454528,115240.0,115230.0,0.0902]
[1761564294774,1.71454528,115240.0,115230.0,0.68024]
[1761564297960,1.71454528,115240.0,115230.0,0.0902]
[1761564298117,1.71454528,115240.0,115230.0,0.68024]
[1761564298531,1.71454528,115240.0,115230.0,0.62472]
[1761564298734,1.71454528,115240.0,115230.0,0.68024]
[1761564302402,0.73864356,115240.0,115230.0,0.68024]
[1761564302614,1.71454528,115240.0,115230.0,0.68024]
[1761564302824,1.13677541,115240.0,115230.0,0.68024]
[1761564303080,0.7069564,115240.0,115230.0,0.68024]
[1761564303341,0.69889549,115240.0,115230.0,0.68024]
[1761564303585,1.01285339,115240.0,115230.0,0.68024]
[1761564304060,0.18490253,115240.0,115230.0,0.68024]
[1761564304469,0.67285339,115240.0,115230.0,0.68024]
[1761564304859,0.67285339,115240.0,115230.0,0.52748]
[1761564305092,1.14980425,115240.0,115230.0,0.52748]
[1761564305300,1.49787188,115240.0,115230.0,0.68024]
[1761564305514,0.61178917,115240.0,115230.0,0.68024]
[1761564305732,1.58769089,115240.0,115230.0,0.68024]
[1761564305954,0.52197016,115240.0,115230.0,0.68024]
[1761564306204,1.00485339,115240.0,115230.0,0.68024]
[1761564306904,1.00485339,115240.0,115230.0,1.16819086]
[1761564306905,0.00335168,115240.0,115230.0,1.16819086]
[1761564307132,0.00035168,115240.0,115230.0,0.67985901]
[1761564307356,0.00035168,115240.0,115230.0,0.77009901]
[1761564307808,0.48830254,115240.0,115230.0,0.77009901]
[1761564308029,0.49330254,115240.0,115230.0,0.77009901]
[1761564308246,0.48830254,115240.0,115230.0,0.77009901]
[1761564308678,0.48830254,115240.0,115230.0,0.77309901]
[1761564309318,0.48830254,115240.0,115230.0,0.77409901]
[1761564309780,0.00035168,115240.0,115230.0,0.77409901]
[1761564310004,0.00035168,115240.0,115230.0,1.43561578]
[1761564310240,0.00035168,115240.0,115230.0,0.77409901]
[1761564311332,0.00035168,115240.0,115230.0,1.43561578]
[1761564311466,0.00035168,115240.0,115230.0,1.26204987]
[1761564311674,0.00035168,115240.0,115230.0,0.77409901]
[1761564312688,0.00035168,115240.0,115230.0,1.26204987]
[1761564312908,0.00035168,115240.0,115230.0,2.31974889]
[1761564313154,0.00035168,115240.0,115230.0,2.38193159]
[1761564313363,0.00035168,115240.0,115230.0,2.34578098]
[1761564313571,0.00035168,115240.0,115230.0,2.40796368]
[1761564314381,0.00035168,115240.0,115230.0,2.34278098]
[1761564314606,0.00035168,115240.0,115230.0,1.37287926]
[1761564314825,0.00035168,115240.0,115230.0,2.34878098]
[1761564315050,0.00035168,115240.0,115230.0,2.34278098]
[1761564315265,0.00035168,115240.0,115230.0,2.34078099]
[1761564315489,0.00035168,115240.0,115230.0,2.35178098]
[1761564315928,0.00035168,115240.0,115230.0,2.35078098]
[1761564316379,0.00035168,115240.0,115230.0,2.35278098]
[1761564316592,0.00035168,115240.0,115230.0,1.86483012]
[1761564316870,0.00035168,115240.0,115230.0,1.71207012]
[1761564317082,0.00035168,115240.0,115230.0,1.86499012]
[1761564317294,0.00035168,115240.0,115230.0,1.85499014]
[1761564317521,0.00035168,115240.0,115230.0,1.84599014]
[1761564317743,0.00035168,115240.0,115230.0,1.25579014]
[1761564317942,0.00035168,115240.0,115230.0,1.85087014]
[1761564318153,0.00035168,115240.0,115230.0,1.83283803]
[1761564318360,0.00035168,115240.0,115230.0,1.82283805]
[1761564318580,0.00035168,115240.0,115230.0,1.83483803]
[1761564318817,0.00035168,115240.0,115230.0,1.34688717]
[1761564319045,0.00035168,115240.0,115230.0,1.82283805]
[1761564319257,0.00035168,115240.0,115230.0,1.83283803]
[1761564319462,0.00035168,115240.0,115230.0,1.83383803]
[1761564319666,0.00035168,115240.0,115230.0,1.82383805]
[1761564320706,0.00035168,115240.0,115230.0,1.33588719]
[1761564321046,0.00035168,115240.0,115230.0,1.81383806]
[1761564321261,0.00035168,115240.0,115230.0,1.82383805]
[1761564321493,0.00035168,115240.0,115230.0,1.3258872]
[1761564321697,0.00035168,115240.0,115230.0,1.82383805]
[1761564322268,0.00035168,115240.0,115230.0,1.3258872]
[1761564322490,0.00035168,115240.0,115230.0,1.82383805]
[1761564322733,0.00035168,115240.0,115230.0,1.81383806]
[1761564322958,0.00035168,115240.0,115230.0,1.82383805]
[1761564323485,0.00035168,115240.0,115230.0,1.3258872]
[1761564323689,0.00035168,115240.0,115230.0,0.52605901]
[1761564323903,0.00035168,115240.0,115230.0,1.11597901]
[1761564324538,0.17353579,115250.0,115240.0,0.34]
[1761564324753,0.66148665,115250.0,115240.0,0.42981901]
[1761564324967,0.48795086,115250.0,115240.0,0.42981901]
[1761564325173,0.66169304,115250.0,115240.0,0.42981901]
[1761564325689,0.66169304,115250.0,115240.0,0.43081901]
[1761564325894,0.17374218,115250.0,115240.0,0.96525901]
[1761564326103,0.17374218,115250.0,115240.0,1.02073901]
[1761564327638,0.00020639,115250.0,115240.0,1.02073901]
[1761564333983,0.17374218,115250.0,115240.0,1.02073901]
[1761564334338,0.6073639,115250.0,115240.0,0.68073901]
[1761564334528,0.6073639,115250.0,115240.0,0.59092]
[1761564335351,0.6073639,115250.0,115240.0,0.58992]
[1761564336707,0.17355085,115240.0,115230.0,0.09024]
[1761564336932,0.17355085,115240.0,115230.0,0.76989901]
[1761564336933,0.60717257,115240.0,115230.0,0.76989901]
[1761564337484,0.60717257,115240.0,115230.0,0.18005901]
[1761564337684,0.60717257,115240.0,115230.0,0.76989901]
[1761564338164,0.61017257,115240.0,115230.0,0.76989901]
[1761564342824,0.61017257,115240.0,115230.0,0.68008]
[1761564345662,0.17655085,115240.0,115230.0,0.68008]
[1761564345863,0.003,115240.0,115230.0,0.76989901]
[1761564347024,0.17374234,115250.0,115230.0,0.76989901]
[1761564347262,0.17374234,115250.0,115240.0,0.09707306]
[1761564348376,0.00020639,115250.0,115240.0,0.09707306]
[1761564348594,0.17374218,115250.0,115240.0,0.09707306]
[1761564349797,0.17674218,115250.0,115240.0,0.09707306]
[1761564351271,0.17674218,115250.0,115240.0,0.08981901]
[1761564352488,0.6103639,115250.0,115240.0,0.08981901]
[1761564352806,0.17674218,115250.0,115240.0,0.08981901]
[1761564353212,0.6103639,115250.0,115240.0,0.08981901]
[1761564354744,0.6103639,115250.0,115240.0,0.14533901]
[1761564357880,0.17674218,115250.0,115240.0,0.14533901]
[1761564359681,0.17674218,115250.0,115240.0,0.31881901]
[1761564364509,0.17674218,115250.0,115240.0,0.52701901]
[1761564369183,0.17674218,115250.0,115240.0,0.5274]
[1761564369590,0.6103639,115250.0,115240.0,0.5274]
[1761564370152,0.17674218,115250.0,115240.0,0.5274]
[1761564371486,0.00320639,115250.0,115240.0,0.61721901]
[1761564372268,0.17674218,115250.0,115240.0,0.61721901]
[1761564374969,0.00320639,115250.0,115240.0,0.61721901]
[1761564375366,0.00320639,115250.0,115240.0,0.67940171]
[1761564376589,0.00020639,115250.0,115240.0,0.67940171]
[1761564376789,0.00020639,115250.0,115240.0,0.68040171]
[1761564379287,0.00020639,115250.0,115240.0,1.11402343]
[1761564379882,0.00020639,115250.0,115240.0,0.68040171]
[1761564380480,0.00020639,115250.0,115240.0,0.85395256]
[1761564380871,0.00020639,115250.0,115240.0,1.32375656]
[1761564381089,0.00020639,115250.0,115240.0,1.66375656]
[1761564381269,0.00020639,115250.0,115240.0,1.60157386]
[1761564382389,0.00020639,115250.0,115240.0,1.66390522]
[1761564382633,0.00020639,115250.0,115240.0,1.67261685]
[1761564385112,0.00020639,115250.0,115240.0,2.10623857]
[1761564385318,0.00020639,115250.0,115240.0,1.67261685]
[1761564386200,0.00020639,115250.0,115240.0,1.61928547]
[1761564386624,0.00020639,115250.0,115240.0,1.62528547]
[1761564387951,0.00020639,115250.0,115240.0,1.67919575]
[1761564388570,0.00020639,115250.0,115240.0,1.75677977]
[1761564389242,0.00020639,115250.0,115240.0,1.76677976]
[1761564392072,0.00020639,115250.0,115240.0,1.75677977]
[1761564392292,0.00020639,115250.0,115240.0,1.76677976]
[1761564393291,0.00020639,115250.0,115240.0,1.75677977]
[1761564393508,0.00020639,115250.0,115240.0,1.76677976]
[1761564396048,0.00020639,115250.0,115240.0,1.91307976]
[1761564396288,0.00020639,115250.0,115240.0,1.90307977]
[1761564396490,0.00020639,115250.0,115240.0,1.91307976]
[1761564397247,0.00020639,115250.0,115240.0,1.90307977]
[1761564397713,0.00020639,115250.0,115240.0,1.91307976]
[1761564398827,0.00020639,115250.0,115240.0,1.42554776]
[1761564399030,0.00020639,115250.0,115240.0,1.91307976]
[1761564399234,0.00020639,115250.0,115240.0,1.90307977]
[1761564399368,0.00020639,115250.0,115240.0,1.91307976]
[1761564400761,0.00020639,115250.0,115240.0,1.87689748]
[1761564400983,0.00020639,115250.0,115240.0,1.91307976]
[1761564401887,0.00020639,115250.0,115240.0,1.42554776]
[1761564402120,0.00020639,115250.0,115240.0,0.97834778]
[1761564402305,0.00020639,115250.0,115240.0,1.97797576]
[1761564404542,0.00020639,115250.0,115240.0,2.05555978]
[1761564405131,0.00020639,115250.0,115240.0,1.56802778]
[1761564405431,0.00020639,115250.0,115240.0,2.05555978]
[1761564407744,0.00020639,115250.0,115240.0,1.56802778]
[1761564408019,0.00020639,115250.0,115240.0,1.90925978]
[1761564409414,0.00020639,115250.0,115240.0,1.42172778]
[1761564409547,0.00020639,115250.0,115240.0,1.31957978]
[1761564409747,0.00020639,115250.0,115240.0,1.90921978]
[1761564410585,0.00020639,115250.0,115240.0,1.40297616]
[1761564410791,0.00020639,115250.0,115240.0,1.90050815]
[1761564411385,0.00020639,115250.0,115240.0,1.4216723]
[1761564411585,0.00020639,115250.0,115240.0,1.9092043]
[1761564413278,0.00020639,115250.0,115240.0,1.89920431]
[1761564413480,0.00020639,115250.0,115240.0,1.9092043]
[1761564415542,0.00020639,115250.0,115240.0,1.89920431]
[1761564419433,0.00020639,115250.0,115240.0,2.04550431]
[1761564419653,0.00020639,115250.0,115240.0,2.03680816]
[1761564420307,0.00020639,115250.0,115240.0,1.54927616]
[1761564420499,0.00020639,115250.0,115240.0,2.03680816]
[1761564421115,0.00020639,115250.0,115240.0,1.54927616]
[1761564421321,0.00020639,115250.0,115240.0,2.03680816]
[1761564421532,0.00020639,115250.0,115240.0,1.26195901]
[1761564422461,0.00020639,115250.0,115240.0,1.74349101]
[1761564422860,0.00020639,115250.0,115240.0,1.91804186]
[1761564423045,0.00020639,115250.0,115240.0,1.74449101]
[1761564423881,0.00020639,115250.0,115240.0,1.25695901]
[1761564424085,0.00020639,115250.0,115240.0,1.31934765]
[1761564424291,0.00020639,115250.0,115240.0,1.80687965]
[1761564425135,0.00020639,115250.0,115240.0,1.9804305]
[1761564425334,0.00020639,115250.0,115240.0,1.95422414]
[1761564425489,0.00020639,115250.0,115240.0,1.80792414]
[1761564426485,0.00020639,115250.0,115240.0,1.88550816]
[1761564431709,0.00020639,115250.0,115240.0,1.39797616]
[1761564432038,0.00020639,115250.0,115240.0,1.88550816]
[1761564437157,0.00020639,115250.0,115240.0,1.54550816]
[1761564439540,0.00020639,115250.0,115240.0,1.05797616]
[1761564439749,0.00020639,115250.0,115240.0,1.54550816]
[1761564442860,0.00020639,115250.0,115240.0,1.46792414]
[1761564443470,0.00020639,115250.0,115240.0,1.54550816]
[1761564443749,0.00020639,115250.0,115240.0,0.98039214]
[1761564444280,0.00020639,115250.0,115240.0,0.80684129]
[1761564444483,0.00020639,115250.0,115240.0,1.29437329]
[1761564444947,0.00020639,115250.0,115240.0,1.46792414]
[1761564445188,0.00020639,115250.0,115240.0,0.80684129]
[1761564445463,0.00020639,115250.0,115240.0,1.46792414]
[1761564447364,0.00020639,115250.0,115240.0,0.80684129]
[1761564447703,0.00020639,115250.0,115240.0,1.29437329]
[1761564447919,0.00020639,115250.0,115240.0,1.46792414]
[1761564449852,0.00020639,115250.0,115240.0,0.98039214]
[1761564452703,0.00020639,115250.0,115240.0,1.49147682]
[1761564456503,0.00020639,115250.0,115240.0,1.05797616]
[1761564456708,0.00020639,115250.0,115240.0,1.49147682]
[1761564458435,0.00020639,115250.0,115240.0,1.05797616]
[1761564458644,0.00020639,115250.0,115240.0,1.49147682]
[1761564460181,0.00020639,115250.0,115240.0,1.83147682]
[1761564460335,0.00020639,115250.0,115240.0,2.26497748]
[1761564460535,0.00020639,115250.0,115240.0,2.34369344]
[1761564461139,3.506e-05,115250.0,115240.0,2.19639344]
[1761564461339,3.506e-05,115250.0,115240.0,1.76789278]
[1761564461571,3.506e-05,115250.0,115240.0,1.76889278]
[1761564463450,3.506e-05,115250.0,115240.0,2.20239344]
[1761564463853,3.506e-05,115250.0,115240.0,1.76889278]
[1761564464089,3.506e-05,115250.0,115240.0,1.84686778]
[1761564465237,3.506e-05,115250.0,115240.0,1.25722778]
[1761564465450,3.506e-05,115250.0,115240.0,1.84686778]
[1761564468100,3.506e-05,115250.0,115240.0,1.61790778]
[1761564468271,3.506e-05,115250.0,115240.0,1.84682778]
[1761564469714,3.506e-05,115250.0,115240.0,1.25722778]
[1761564469920,3.506e-05,115250.0,115240.0,1.84682778]
[1761564475288,3.506e-05,115250.0,115240.0,1.99312778]
[1761564475885,3.506e-05,115250.0,115240.0,1.55962712]
[1761564476064,3.506e-05,115250.0,115240.0,1.99312778]
[1761564481407,3.506e-05,115250.0,115240.0,1.91515278]
[1761564481835,3.506e-05,115250.0,115240.0,2.12215343]
[1761564482032,0.18218624,115310.0,115280.0,0.43350066]
[1761564482318,0.18233207,115310.0,115300.0,0.22892]
[1761564482866,0.64185615,115310.0,115300.0,0.22892]
[1761564483290,0.64309374,115310.0,115300.0,0.22892]
[1761564483743,0.64909374,115310.0,115300.0,0.22892]
[1761564484917,0.64309374,115310.0,115300.0,0.22892]
[1761564485134,0.64809374,115310.0,115300.0,0.22892]
[1761564485709,0.17348119,115290.0,115270.0,0.24452535]
[1761564485914,0.17348119,115290.0,115280.0,0.47125901]
[1761564486491,0.19950732,115290.0,115280.0,0.47125901]
[1761564487369,0.19950732,115290.0,115280.0,0.76953901]
[1761564488052,0.02602613,115290.0,115280.0,0.94302964]
[1761564488252,0.02602613,115290.0,115280.0,1.20303967]
[1761564488477,0.02802613,115290.0,115280.0,0.94302964]
[1761564488681,0.02802613,115290.0,115280.0,0.94402964]
[1761564489465,0.02802613,115290.0,115280.0,1.3775303]
[1761564489688,0.02802613,115290.0,115280.0,1.00637693]
[1761564491021,0.02802613,115290.0,115280.0,0.94402964]
[1761564491735,0.02802613,115290.0,115280.0,0.77053901]
[1761564491988,0.02802613,115290.0,115280.0,0.94402964]
[1761564492197,0.20232691,115290.0,115280.0,0.77053901]
[1761564500360,0.02885133,115290.0,115280.0,1.41371258]
[1761564500636,0.02885133,115290.0,115280.0,0.80672129]
[1761564504223,0.20232691,115290.0,115280.0,0.80672129]
[1761564505854,0.02885133,115290.0,115280.0,0.80672129]
[1761564506998,0.02885133,115290.0,115280.0,0.86906858]
[1761564508802,0.02885133,115290.0,115280.0,0.8328863]
[1761564509032,0.20232691,115290.0,115280.0,0.86906858]
[1761564511702,0.02885133,115290.0,115280.0,0.86906858]
[1761564513334,0.02885133,115290.0,115280.0,1.35645431]
[1761564516448,0.02885133,115290.0,115280.0,0.86906858]
[1761564518046,0.20232691,115290.0,115280.0,1.35645431]
[1761564520185,0.30232691,115290.0,115280.0,1.35645431]
[1761564522783,0.30232691,115290.0,115280.0,0.86906858]
[1761564523052,0.30232691,115290.0,115280.0,1.35645431]
[1761564523458,0.30232691,115290.0,115280.0,0.86906858]
[1761564525641,0.30232691,115290.0,115280.0,1.35645431]
[1761564527126,0.30232691,115290.0,115280.0,0.86906858]
[1761564528354,0.12885133,115290.0,115280.0,1.04255921]
[1761564528553,0.12885133,115290.0,115280.0,1.35645431]
[1761564528927,0.12885133,115290.0,115280.0,1.04255921]
[1761564529126,0.12885133,115290.0,115280.0,1.52994494]
[1761564537221,0.12885133,115290.0,115280.0,1.04255921]
[1761564537429,0.12885133,115290.0,115280.0,1.52994494]
[1761564540536,0.30232691,115290.0,115280.0,1.00637693]
[1761564540741,0.30232691,115290.0,115280.0,1.32027203]
[1761564541289,0.30232691,115290.0,115280.0,0.2433263]
[1761564541498,0.30232691,115290.0,115280.0,0.8327263]
[1761564542103,0.78971264,115290.0,115280.0,0.2433263]
[1761564542335,0.78971264,115290.0,115280.0,0.8327263]
[1761564542540,1.27709837,115290.0,115280.0,0.77037901]
[1761564542740,0.78971264,115290.0,115280.0,0.77037901]
[1761564543068,0.78971264,115290.0,115280.0,0.68056]
[1761564544542,0.78971264,115290.0,115280.0,0.52812]
[1761564544543,1.27709837,115290.0,115280.0,0.52812]
[1761564544730,1.28519623,115290.0,115280.0,0.68056]
[1761564545428,1.27509837,115290.0,115280.0,0.67956]
[1761564545636,1.28009837,115290.0,115280.0,0.68056]
[1761564546899,1.27509837,115290.0,115280.0,0.67956]
[1761564547365,1.28709837,115290.0,115280.0,0.67956]
[1761564554742,1.37691738,115290.0,115280.0,0.67956]
[1761564555713,1.28709837,115290.0,115280.0,0.67956]
[1761564560679,1.28709837,115290.0,115280.0,0.5894]
[1761564564945,0.79971264,115290.0,115280.0,0.5894]
[1761564565163,1.28709837,115290.0,115280.0,0.5894]
[1761564569755,0.74574256,115290.0,115280.0,0.5894]
[1761564571654,0.31232691,115290.0,115280.0,0.5894]
[1761564571874,0.74574256,115290.0,115280.0,0.6796]
[1761564572334,0.75384561,115290.0,115280.0,0.6796]
[1761564573319,0.75384561,115290.0,115280.0,0.0902]
[1761564573516,0.84366462,115290.0,115280.0,0.67972]
[1761564573699,1.27348363,115290.0,115280.0,0.67972]
[1761564577974,1.61708027,115290.0,115280.0,0.0902]
[1761564578146,0.17353579,115250.0,115240.0,0.40958723]
[1761564578480,0.17353579,115250.0,115240.0,1.1215263]
[1761564578994,0.19957001,115250.0,115240.0,1.1215263]
[1761564579421,0.19957001,115250.0,115240.0,1.1225263]
[1761564579967,0.20057001,115250.0,115240.0,1.1225263]
[1761564585080,0.20057001,115250.0,115240.0,1.55594195]
[1761564585305,0.20057001,115250.0,115240.0,1.1225263]
[1761564585754,0.20057001,115250.0,115240.0,1.55594195]